bitfinex-derivatives/quotes_SOLF0:USTF0_20250817
["timestamp","ask_amount","ask_price","bid_price","bid_amount"]
[1755396724138,2.83,188.46,188.45,3.05]
[1755396724341,7.04731999,188.46,188.45,3.05]
[1755396725036,4.21731999,188.46,188.45,3.05]
[1755396725242,2.83,188.5,188.46,3.05]
[1755396725541,2.83,188.48,188.47,3.05]
[1755396725742,7.04823885,188.48,188.47,3.05]
[1755396727137,2.83,188.47,188.46,3.05]
[1755396727442,7.04823885,188.47,188.46,3.05]
[1755396733648,7.04823885,188.47,188.46,8.3528]
[1755396734850,7.04823885,188.47,188.46,3.05]
[1755396745558,7.04823885,188.47,188.45,5.303]
[1755396745765,2.9,188.45,188.42,3.01]
[1755396745966,2.9,188.43,188.38,1.97984688]
[1755396746263,2.9,188.41,188.4,3.01]
[1755396746459,7.11823885,188.41,188.4,3.01]
[1755396757572,7.11823885,188.41,188.38,5.3049]
[1755396757573,4.21823885,188.41,188.38,5.3049]
[1755396757773,7.11823885,188.4,188.39,3.01]
[1755396761675,4.21823885,188.4,188.39,8.3147]
[1755396761875,2.9,188.41,188.4,3.01]
[1755396762175,7.05911409,188.41,188.4,3.01]
[1755396762676,2.9,188.48,188.4,3.01]
[1755396762881,2.9,188.46,188.4,3.01]
[1755396763173,2.9,188.44,188.4,3.01]
[1755396763375,4.15860902,188.43,188.4,3.01]
[1755396763676,7.05860902,188.42,188.4,3.01]
[1755396763878,2.9,188.42,188.41,5.304]
[1755396764074,7.05884669,188.42,188.41,8.314]
[1755396764476,4.15884669,188.42,188.41,8.314]
[1755396764675,2.9,188.44,188.43,3.01]
[1755396764876,2.9,188.46,188.43,3.01]
[1755396765076,4.15865745,188.45,188.44,5.3031]
[1755396765279,4.15865745,188.45,188.44,8.3131]
[1755396765479,2.9,188.52,188.43,3.01]
[1755396765680,2.9,188.5,188.45,5.303]
[1755396765877,4.15828069,188.49,188.46,3.01]
[1755396766080,2.9,188.47,188.46,3.01]
[1755396766285,7.05828069,188.47,188.46,3.01]
[1755396766676,7.05828069,188.47,188.46,8.3128]
[1755396768882,7.05828069,188.47,188.46,3.01]
[1755396770887,3.08,188.46,188.43,2.86]
[1755396773284,3.08,188.44,188.43,2.86]
[1755396773780,3.08,188.51,188.41,2.86]
[1755396773984,3.08,188.49,188.41,2.86]
[1755396774187,3.08,188.47,188.41,2.86]
[1755396774383,4.15359229,188.46,188.41,2.86]
[1755396774685,3.08,188.44,188.41,2.86]
[1755396774886,3.08,188.42,188.39,2.86]
[1755396775085,4.15448305,188.41,188.39,2.86]
[1755396775289,3.08,188.4,188.39,2.86]
[1755396776682,5.05984688,188.47,188.36,2.86]
[1755396776887,3.08,188.45,188.36,2.86]
[1755396777087,4.15451557,188.44,188.36,2.86]
[1755396777289,3.08,188.42,188.36,2.86]
[1755396777490,4.15451557,188.41,188.36,2.86]
[1755396777790,3.08,188.39,188.35,129.28]
[1755396778090,3.08,188.39,188.37,2.86]
[1755396779689,7.23447919,188.38,188.37,2.86]
[1755396782592,3.08,188.37,188.34,2.86]
[1755396782791,3.08,188.37,188.33,1.97984688]
[1755396782792,3.08,188.37,188.35,2.86]
[1755396782991,7.23442262,188.36,188.35,2.86]
[1755396783190,4.15442262,188.36,188.31,2.86]
[1755396783387,3.08,188.34,188.31,2.86]
[1755396784890,5.85415738,188.42,188.32,2.86]
[1755396785192,3.08,188.4,188.32,2.86]
[1755396785492,3.08,188.38,188.32,2.86]
[1755396785695,4.15216863,188.37,188.32,2.86]
[1755396785894,4.15216863,188.36,188.32,2.86]
[1755396786192,3.08,188.34,188.32,2.86]
[1755396787195,5.85415738,188.42,188.32,2.86]
[1755396787392,3.08,188.33,188.32,2.86]
[1755396797915,3.08,188.33,188.31,3.08]
[1755396798311,3.08,188.33,188.32,3.08]
[1755396800111,1.97984688,188.42,188.32,3.08]
[1755396800307,2.96,188.34,188.32,3.08]
[1755396801715,1.97984688,188.42,188.32,3.08]
[1755396802017,2.96,188.33,188.32,3.08]
[1755396802407,2.96,188.33,188.3,5.05984688]
[1755396802608,2.96,188.33,188.31,3.08]
[1755396804119,2.96,188.33,188.27,131.27984688]
[1755396804318,2.96,188.33,188.32,3.08]
[1755396815826,2.96,188.33,188.31,1.2728761]
[1755396816427,2.96,188.33,188.31,4.3528761]
[1755396816628,2.96,188.33,188.32,3.08]
[1755396817227,7.12306927,188.33,188.32,3.08]
[1755396819433,7.12306927,188.33,188.28,3.08]
[1755396819434,2.96,188.32,188.28,3.08]
[1755396819631,2.96,188.3,188.28,3.08]
[1755396819938,7.12892168,188.29,188.28,3.08]
[1755396820730,4.16892168,188.29,188.28,3.08]
[1755396820939,7.12892168,188.29,188.28,3.08]
[1755396821938,2.96,188.28,188.27,4.3528761]
[1755396823034,7.13175481,188.28,188.25,1.2728761]
[1755396823236,7.13175481,188.27,188.26,3.08]
[1755396823632,2.96,188.26,188.22,1.2728761]
[1755396823832,7.13227396,188.25,188.22,4.3528761]
[1755396824137,5.85415738,188.3,188.21,3.08]
[1755396824138,2.96,188.23,188.21,3.08]
[1755396824334,7.13227396,188.22,188.21,3.08]
[1755396824733,2.96,188.21,188.19,3.08]
[1755396827944,3.09,188.27,188.18,2.93]
[1755396828147,3.09,188.25,188.18,2.93]
[1755396828343,4.16179618,188.24,188.18,2.93]
[1755396828643,3.09,188.22,188.18,2.93]
[1755396830835,3.09,188.27,188.18,2.93]
[1755396831039,3.09,188.25,188.18,2.93]
[1755396831239,3.09,188.23,188.18,2.93]
[1755396832942,3.09,188.23,188.18,4.92170995]
[1755396833143,3.09,188.23,188.19,2.93]
[1755396834040,1.99170995,188.3,188.19,2.93]
[1755396834345,3.09,188.22,188.19,2.93]
[1755396834939,3.09,188.21,188.19,2.93]
[1755396841152,3.09,188.29,188.19,2.93]
[1755396841351,3.09,188.27,188.19,2.93]
[1755396841549,4.17479815,188.26,188.19,2.93]
[1755396841754,3.09,188.24,188.19,2.93]
[1755396845152,3.09,188.3,188.22,2.93]
[1755396845353,3.09,188.28,188.25,2.93]
[1755396845553,3.09,188.27,188.25,2.93]
[1755396845755,3.09,188.29,188.26,2.93]
[1755396845952,3.09,188.35,188.29,2.93]
[1755396846253,3.09,188.33,188.29,2.93]
[1755396846457,3.09,188.33,188.3,2.93]
[1755396849554,3.09,188.33,188.28,1.99170995]
[1755396849754,3.09,188.33,188.27,2.93]
[1755396850056,4.1754196,188.32,188.27,2.93]
[1755396850257,3.09,188.31,188.28,2.93]
[1755396850554,3.09,188.31,188.26,2.93]
[1755396850954,3.09,188.3,188.26,8.2382]
[1755396851151,3.09,188.3,188.27,2.93]
[1755396852647,0.92462205,188.37,188.27,2.93]
[1755396852847,3.09,188.35,188.27,2.93]
[1755396853050,3.09,188.33,188.27,2.93]
[1755396853458,3.09,188.33,188.28,1.99170995]
[1755396853647,3.09,188.33,188.29,2.93]
[1755396856260,3.09,188.36,188.29,2.93]
[1755396856460,3.09,188.34,188.32,2.93]
[1755396856660,3.09,188.36,188.32,2.93]
[1755396856855,3.09,188.34,188.32,2.93]
[1755396857359,129.34,188.4,188.32,2.93]
[1755396857559,2.86,188.33,188.32,2.93]
[1755396859554,2.86,188.33,188.28,4.97170995]
[1755396859764,2.86,188.33,188.3,2.98]
[1755396864267,2.86,188.33,188.31,2.98]
[1755396866367,2.86,188.33,188.32,2.98]
[1755396866570,7.05226776,188.33,188.32,2.98]
[1755396867963,2.86,188.33,188.32,2.98]
[1755396869361,7.05154102,188.33,188.32,2.98]
[1755396874276,2.86,188.33,188.32,2.98]
[1755396875973,7.05332425,188.33,188.29,2.98]
[1755396876170,2.86,188.31,188.27,1.99170995]
[1755396876375,2.86,188.31,188.29,2.98]
[1755396876677,2.86,188.31,188.3,2.98]
[1755396877577,2.86,188.31,188.29,2.98]
[1755396877777,2.86,188.31,188.27,7.29960995]
[1755396877980,5.85415738,188.38,188.28,2.98]
[1755396878168,2.86,188.3,188.28,2.98]
[1755396879276,2.86,188.37,188.29,2.98]
[1755396879478,2.86,188.35,188.29,2.98]
[1755396879678,2.86,188.33,188.29,2.98]
[1755396879881,2.86,188.31,188.29,2.98]
[1755396880580,2.86,188.3,188.29,2.98]
[1755396882281,7.06041569,188.3,188.29,2.98]
[1755396882686,7.06041569,188.3,188.29,4.25314219]
[1755396891596,4.20041569,188.3,188.29,4.25314219]
[1755396891896,7.26041569,188.3,188.29,4.25314219]
[1755396894698,7.26041569,188.3,188.29,1.27314219]
[1755396895398,7.26041569,188.3,188.29,4.15314219]
[1755396902996,3.06,188.29,188.27,1.27314219]
[1755396903202,3.06,188.27,188.25,4.15314219]
[1755396903394,7.26041569,188.26,188.25,1.27314219]
[1755396903797,7.26041569,188.26,188.25,4.15314219]
[1755396904104,4.20041569,188.26,188.25,4.15314219]
[1755396905602,7.26041569,188.26,188.25,4.15314219]
[1755396906904,7.26041569,188.26,188.25,1.27314219]
[1755396907201,7.26041569,188.26,188.22,129.34]
[1755396907202,3.06,188.25,188.23,1.27314219]
[1755396907401,4.20041569,188.24,188.22,2.88]
[1755396907702,3.06,188.22,188.2,2.88]
[1755396907901,7.26041569,188.21,188.18,4.15314219]
[1755396908104,4.20041569,188.2,188.19,2.88]
[1755396908300,3.06,188.19,188.17,2.88]
[1755396908501,7.26041569,188.18,188.17,2.88]
[1755396910207,3.06,188.18,188.17,2.88]
[1755396910597,3.06,188.18,188.16,1.27314219]
[1755396910801,3.06,188.18,188.16,4.15314219]
[1755396912508,3.06,188.18,188.17,2.88]
[1755396913607,3.06,188.17,188.16,4.15314219]
[1755396914807,3.06,188.17,188.16,2.88]
[1755396915010,3.06,188.17,188.15,4.15314219]
[1755396915308,3.06,188.17,188.16,2.88]
[1755396915608,3.06,188.17,188.15,1.27314219]
[1755396915805,3.06,188.17,188.16,2.88]
[1755396916408,3.06,188.17,188.15,1.27314219]
[1755396916808,3.06,188.17,188.15,4.15314219]
[1755396918804,3.04,188.16,188.13,1.27314219]
[1755396919009,3.04,188.16,188.14,2.95]
[1755396919509,3.04,188.16,188.15,2.95]
[1755396920409,1.27314219,188.21,188.13,1.27314219]
[1755396920709,3.04,188.19,188.13,4.22314219]
[1755396920909,3.04,188.19,188.14,2.95]
[1755396922507,3.04,188.19,188.15,2.95]
[1755396923208,3.04,188.19,188.11,134.5526]
[1755396923406,3.04,188.19,188.13,4.22314219]
[1755396924012,3.04,188.19,188.13,1.27314219]
[1755396924212,3.04,188.19,188.14,2.95]
[1755396926309,3.04,188.19,188.15,2.95]
[1755396929512,3.04,188.19,188.12,2.95]
[1755396929704,3.04,188.19,188.15,2.95]
[1755396930713,3.04,188.19,188.16,2.95]
[1755396932915,3.04,188.19,188.14,4.22314219]
[1755396933114,3.04,188.19,188.15,2.95]
[1755396933917,1.27314219,188.19,188.12,1.27314219]
[1755396934216,3.04,188.17,188.14,2.95]
[1755396935414,1.27314219,188.17,188.12,2.95]
[1755396935614,3.04,188.16,188.13,2.95]
[1755396936017,3.04,188.14,188.03,5.3148]
[1755396936218,5.85415738,188.23,188.03,5.3148]
[1755396936219,3.04,188.12,188.09,2.95]
[1755396936918,3.04,188.12,188.05,1.27314219]
[1755396937214,3.04,188.12,188.08,2.95]
[1755396937717,4.15296775,188.11,188.08,2.95]
[1755396937913,3.04,188.12,188.08,2.95]
[1755396938118,3.04,188.1,188.08,2.95]
[1755396938813,3.04,188.1,188.09,2.95]
[1755396943221,7.19506049,188.1,188.09,2.95]
[1755396944517,4.15506049,188.1,188.05,1.27314219]
[1755396944818,5.42906209,188.09,188.03,2.95]
[1755396945018,3.04,188.04,187.92,129.28]
[1755396945219,3.04,188.04,187.99,2.95]
[1755396947326,2.97,188.02,187.99,2.95]
[1755396955023,2.97,188.08,188.0,2.9]
[1755396955223,2.97,188.06,188.0,2.9]
[1755396955421,2.97,188.04,188.0,2.9]
[1755396955622,4.14850138,188.03,187.96,1.99571904]
[1755396955816,7.11850138,188.02,188.01,2.9]
[1755396956021,2.97,188.02,188.01,2.9]
[1755396957229,2.97,188.08,188.01,2.9]
[1755396957431,1.99571904,188.12,188.01,2.9]
[1755396957432,7.11720602,188.07,188.01,2.9]
[1755396957632,7.11720602,188.06,188.02,2.9]
[1755396957821,2.97,188.06,188.02,2.9]
[1755396958224,2.97,188.05,188.02,2.9]
[1755396959530,2.97,188.11,188.05,2.9]
[1755396959729,4.14716221,188.1,188.05,2.9]
[1755396959928,4.14716221,188.09,188.05,2.9]
[1755396960125,2.97,188.14,188.05,4.89571904]
[1755396960422,2.97,188.12,188.06,2.9]
[1755396960626,4.14723724,188.11,188.08,4.89571904]
[1755396960931,2.97,188.12,188.09,2.9]
[1755396961121,70.79606561,188.15,188.11,1.99571904]
[1755396961324,70.79606561,188.15,187.99,43.99571904]
[1755396961325,5.85415738,188.23,188.14,1.99571904]
[1755396961528,2.97,188.21,188.17,1.99571904]
[1755396961736,7.1158463,188.2,188.18,2.9]
[1755396962030,1.99571904,188.28,188.19,5.3101]
[1755396962031,5.85415738,188.28,188.19,5.3101]
[1755396962229,2.97,188.23,188.2,2.9]
[1755396962424,2.97,188.24,188.2,2.9]
[1755396962628,0.9242046,188.4,188.17,2.9]
[1755396962629,2.97,188.22,188.17,2.9]
[1755396962932,2.97,188.2,188.17,2.9]
[1755396963227,2.97,188.19,188.17,2.9]
[1755396966536,2.97,188.19,188.16,1.99571904]
[1755396966741,2.97,188.26,188.17,2.9]
[1755396966935,2.97,188.24,188.17,2.9]
[1755396967134,2.97,188.22,188.17,2.9]
[1755396967335,2.97,188.22,188.18,2.9]
[1755396967736,2.97,188.22,188.14,2.9]
[1755396970242,2.97,188.2,188.14,2.9]
[1755396979558,2.81,188.26,188.17,2.96]
[1755396979849,2.81,188.24,188.2,2.96]
[1755396980047,2.81,188.31,188.23,2.96]
[1755396980242,4.13850664,188.3,188.23,2.96]
[1755396980446,2.81,188.28,188.23,2.96]
[1755396980646,4.13850664,188.27,188.23,2.96]
[1755396980850,2.81,188.25,188.23,2.96]
[1755396981244,2.81,188.25,188.22,1.99571904]
[1755396981446,2.81,188.32,188.22,2.96]
[1755396981646,2.81,188.3,188.22,2.96]
[1755396981848,7.84987642,188.33,188.22,2.96]
[1755396981849,2.81,188.28,188.22,2.96]
[1755396982050,2.81,188.25,188.22,2.96]
[1755396982252,2.81,188.32,188.22,1.99571904]
[1755396982452,2.81,188.3,188.23,2.96]
[1755396982654,6.94691051,188.29,188.25,2.96]
[1755396982854,2.81,188.29,188.25,2.96]
[1755396983451,2.81,188.34,188.25,2.96]
[1755396983651,2.81,188.32,188.25,2.96]
[1755396983852,2.81,188.3,188.25,2.96]
[1755396984052,2.81,188.28,188.25,2.96]
[1755396985457,2.81,188.28,188.26,2.96]
[1755396985749,2.81,188.27,188.26,2.96]
[1755396985955,2.81,188.32,188.26,2.96]
[1755396986254,2.81,188.29,188.26,2.96]
[1755396986847,357.26,188.35,188.26,2.96]
[1755396986848,2.81,188.28,188.26,2.96]
[1755396987052,2.81,188.28,188.23,7.30491904]
[1755396987248,2.81,188.28,188.27,2.96]
[1755396989757,2.81,188.28,188.21,2.96]
[1755396990850,2.81,188.28,188.22,2.96]
[1755396993757,2.81,188.26,188.22,2.96]
[1755396993961,2.81,188.25,188.22,2.96]
[1755396995761,2.81,188.32,188.23,2.96]
[1755396996061,2.81,188.3,188.23,2.96]
[1755396996263,2.81,188.28,188.23,2.96]
[1755396996463,2.81,188.26,188.23,2.96]
[1755396996863,2.81,188.26,188.23,8.2692]
[1755396997064,2.81,188.26,188.24,2.96]
[1755396998164,4.14080126,188.25,188.24,2.96]
[1755396998662,2.81,188.26,188.24,8.2689]
[1755396998863,2.81,188.26,188.25,2.96]
[1755396999063,6.9509013,188.26,188.25,2.96]
[1755397004469,4.1409013,188.26,188.25,8.2687]
[1755397004666,2.81,188.31,188.25,3.5]
[1755397004867,2.81,188.33,188.28,2.96]
[1755397005065,2.81,188.33,188.23,42.0]
[1755397005066,2.81,188.33,188.24,4.95571904]
[1755397005268,2.81,188.33,188.25,2.96]
[1755397005567,2.81,188.32,188.25,2.96]
[1755397006668,2.81,188.32,188.27,2.96]
[1755397007275,2.81,188.32,188.26,2.96]
[1755397008268,2.81,188.32,188.27,3.06]
[1755397009879,2.81,188.32,188.28,3.06]
[1755397011177,2.81,188.32,188.24,3.06]
[1755397012276,2.81,188.32,188.24,8.3689]
[1755397012471,2.81,188.32,188.25,3.06]
[1755397013371,2.81,188.32,188.25,8.3686]
[1755397013572,2.81,188.32,188.26,3.06]
[1755397016677,3.09,188.3,188.26,3.06]
[1755397016880,3.09,188.28,188.26,3.06]
[1755397017479,5.85415738,188.35,188.26,3.06]
[1755397017480,3.09,188.34,188.26,3.06]
[1755397017782,3.09,188.32,188.26,3.06]
[1755397017984,3.09,188.3,188.26,3.06]
[1755397018277,3.98749516,188.29,188.26,3.06]
[1755397018485,3.09,188.3,188.26,3.06]
[1755397018683,7.07819925,188.29,188.26,3.06]
[1755397018883,3.09,188.28,188.26,3.06]
[1755397019284,5.85415738,188.35,188.26,3.06]
[1755397019483,3.9894069,188.34,188.26,3.06]
[1755397019684,1.99571904,188.36,188.27,3.06]
[1755397019685,3.09,188.29,188.27,3.06]
[1755397019884,3.09,188.31,188.27,3.06]
[1755397020180,3.98929388,188.3,188.27,5.05571904]
[1755397020383,3.09,188.34,188.28,3.06]
[1755397020683,3.09,188.43,188.34,3.06]
[1755397020889,3.98770604,188.42,188.37,1.99571904]
[1755397021190,3.09,188.4,188.36,3.06]
[1755397021376,3.09,188.38,188.36,3.06]
[1755397021573,3.09,188.38,188.32,3.06]
[1755397021778,3.98608542,188.37,188.32,3.06]
[1755397021980,3.09,188.36,188.32,3.06]
[1755397022279,3.09,188.35,188.32,3.06]
[1755397022475,3.09,188.35,188.32,8.3667]
[1755397022675,3.09,188.35,188.33,3.06]
[1755397023185,3.09,188.34,188.32,3.06]
[1755397024680,5.85415738,188.45,188.29,3.06]
[1755397024681,1.99571904,188.4,188.29,3.06]
[1755397024881,3.09,188.38,188.29,3.06]
[1755397025080,3.09,188.36,188.29,3.06]
[1755397026283,1.99571904,188.43,188.32,8.3667]
[1755397026583,3.09,188.41,188.33,3.06]
[1755397026779,3.09,188.39,188.33,3.06]
[1755397026981,3.09,188.37,188.33,8.3664]
[1755397027179,3.09,188.36,188.34,3.06]
[1755397027381,3.09,188.38,188.34,3.06]
[1755397027778,3.09,188.38,188.35,3.06]
[1755397028177,3.09,188.38,188.31,1.99571904]
[1755397028484,3.09,188.38,188.36,3.06]
[1755397029183,3.09,188.38,188.33,3.06]
[1755397029386,3.09,188.38,188.29,3.06]
[1755397029577,5.85415738,188.45,188.25,1.99571904]
[1755397029578,3.09,188.36,188.25,1.99571904]
[1755397029783,3.09,188.34,188.26,3.06]
[1755397030176,3.90440257,188.33,188.26,3.06]
[1755397030381,3.09,188.32,188.26,3.06]
[1755397030780,3.09,188.32,188.27,3.06]
[1755397030980,1.99571904,188.36,188.28,3.06]
[1755397031183,3.09,188.34,188.28,3.06]
[1755397032286,3.09,188.34,188.28,5.3077]
[1755397032487,3.09,188.34,188.29,3.06]
[1755397033087,3.09,188.34,188.3,3.06]
[1755397033287,3.09,188.34,188.33,3.06]
[1755397033487,3.09,188.34,188.26,1.99571904]
[1755397033687,3.09,188.34,188.27,3.06]
[1755397034283,3.09,188.34,188.28,5.3076]
[1755397034483,3.09,188.34,188.29,3.06]
[1755397034782,3.09,188.34,188.3,3.06]
[1755397036187,3.09,188.34,188.26,1.99571904]
[1755397036387,3.09,188.34,188.31,3.06]
[1755397038387,3.09,188.34,188.32,2.92]
[1755397039088,1.99571904,188.39,188.32,2.92]
[1755397039288,2.88,188.37,188.32,2.92]
[1755397039487,2.88,188.35,188.32,2.92]
[1755397040888,2.88,188.35,188.3,2.92]
[1755397042982,2.88,188.35,188.31,2.92]
[1755397043387,2.88,188.35,188.32,2.92]
[1755397044094,2.88,188.38,188.32,2.92]
[1755397044287,3.8808931,188.37,188.26,1.99571904]
[1755397044591,2.88,188.35,188.33,2.92]
[1755397045190,2.88,188.38,188.31,2.92]
[1755397045392,6.76164381,188.37,188.31,2.92]
[1755397045693,2.88,188.41,188.3,2.92]
[1755397045894,2.88,188.35,188.27,2.92]
[1755397046192,2.88,188.33,188.27,2.92]
[1755397047190,3.96000991,188.32,188.27,2.92]
[1755397047392,2.88,188.31,188.27,2.92]
[1755397048085,2.88,188.31,188.28,2.92]
[1755397048892,2.88,188.31,188.26,5.3084]
[1755397049095,2.88,188.31,188.29,2.92]
[1755397049394,2.88,188.35,188.26,2.92]
[1755397049595,2.88,188.33,188.26,2.92]
[1755397049792,2.88,188.31,188.26,2.92]
[1755397049985,2.88,188.31,188.27,2.92]
[1755397050189,2.88,188.3,188.27,2.92]
[1755397051094,2.88,188.3,188.27,5.3081]
[1755397051298,2.88,188.3,188.28,2.92]
[1755397051796,2.88,188.29,188.26,5.3083]
[1755397052305,1.99571904,188.36,188.27,5.3081]
[1755397052491,2.88,188.3,188.28,2.92]
[1755397052690,2.88,188.35,188.28,2.92]
[1755397052893,2.88,188.33,188.28,2.92]
[1755397053092,2.88,188.31,188.28,2.92]
[1755397053797,1.99571904,188.36,188.28,2.92]
[1755397053798,2.88,188.3,188.28,2.92]
[1755397055393,2.88,188.3,188.29,2.92]
[1755397056699,2.88,188.35,188.29,2.92]
[1755397056889,3.9634802,188.34,188.29,2.92]
[1755397057092,2.88,188.33,188.29,2.92]
[1755397057496,2.88,188.38,188.3,2.92]
[1755397057800,1.99571904,188.39,188.3,2.92]
[1755397057801,2.88,188.36,188.3,2.92]
[1755397057994,2.88,188.34,188.31,2.92]
[1755397058189,3.96385955,188.33,188.31,2.92]
[1755397058398,2.88,188.32,188.31,2.92]
[1755397059405,2.88,188.38,188.31,2.92]
[1755397059594,2.88,188.36,188.31,2.92]
[1755397059794,2.88,188.34,188.31,8.227]
[1755397059997,2.88,188.34,188.32,2.92]
[1755397060398,2.88,188.38,188.3,2.92]
[1755397060600,2.88,188.36,188.3,2.92]
[1755397060790,2.88,188.34,188.3,2.92]
[1755397060998,2.88,188.33,188.3,2.92]
[1755397061196,2.88,188.33,188.3,8.2273]
[1755397061400,2.88,188.35,188.31,2.92]
[1755397061895,2.88,188.35,188.32,2.92]
[1755397062096,2.88,188.41,188.32,2.92]
[1755397062298,2.88,188.39,188.32,2.92]
[1755397062498,2.88,188.37,188.32,2.92]
[1755397062694,2.88,188.35,188.31,2.92]
[1755397062900,2.88,188.33,188.27,2.92]
[1755397063302,4.02015309,188.32,188.27,2.92]
[1755397063501,2.88,188.33,188.27,2.92]
[1755397063699,6.90015309,188.32,188.3,2.92]
[1755397063900,2.88,188.32,188.31,2.92]
[1755397064095,6.90015309,188.32,188.31,2.92]
[1755397068003,4.02015309,188.32,188.31,2.92]
[1755397068399,4.02015309,188.33,188.31,2.92]
[1755397068700,4.02015309,188.32,188.31,2.92]
[1755397069104,2.87,188.39,188.32,2.86]
[1755397069303,2.87,188.37,188.32,2.86]
[1755397069598,2.87,188.35,188.33,2.86]
[1755397069802,6.89336237,188.34,188.33,2.86]
[1755397074402,4.02336237,188.34,188.31,2.86]
[1755397074707,2.87,188.32,188.3,5.3073]
[1755397075308,2.87,188.32,188.31,2.86]
[1755397075606,6.9069941,188.32,188.31,2.86]
[1755397076406,4.0369941,188.32,188.31,2.86]
[1755397076902,4.0369941,188.32,188.31,8.167]
[1755397079112,6.9069941,188.32,188.31,8.167]
[1755397079309,6.9069941,188.32,188.31,2.86]
[1755397082511,5.85415738,188.39,188.31,2.86]
[1755397082719,2.87,188.33,188.31,2.86]
[1755397083607,2.87,188.39,188.31,2.86]
[1755397083811,2.87,188.37,188.31,2.86]
[1755397084011,6.90790326,188.36,188.35,5.3059]
[1755397084318,2.87,188.39,188.35,2.86]
[1755397084507,2.87,188.39,188.38,2.86]
[1755397084706,6.90404289,188.39,188.38,2.86]
[1755397085113,2.87,188.38,188.36,2.86]
[1755397085307,6.90404289,188.37,188.36,2.86]
[1755397085512,2.87,188.37,188.36,2.86]
[1755397085914,2.87,188.37,188.32,2.86]
[1755397086117,2.87,188.35,188.32,2.86]
[1755397086415,2.87,188.43,188.33,5.3065]
[1755397086616,2.87,188.41,188.34,2.86]
[1755397086812,2.87,188.39,188.34,2.86]
[1755397087008,2.87,188.37,188.34,2.86]
[1755397087204,2.87,188.36,188.34,2.86]
[1755397087406,2.87,188.43,188.34,2.86]
[1755397087606,2.87,188.41,188.34,2.86]
[1755397087808,3.97840059,188.4,188.34,2.86]
[1755397088016,2.87,188.38,188.34,2.86]
[1755397088219,3.97840059,188.37,188.34,2.86]
[1755397088420,6.84840059,188.36,188.34,2.86]
[1755397088616,2.87,188.41,188.34,2.86]
[1755397088818,2.87,188.39,188.34,2.86]
[1755397089017,2.87,188.37,188.35,2.86]